[Event "Torneo Nuevo Centro. Jornada 10"]
[Site "Chess.com"]
[Date "2020.08.21"]
[Round "3"]
[White "Buenafe Moya, Javier"]
[Black "Pardo Ruiz, Carlos"]
[Result "1-0"]
[WhiteElo "1965"]
[BlackElo "1687"]
[TimeControl "180+2"]
[EndTime "10:58:38 PDT"]
[Termination "Victoria de JavierBuenafeMoya - partida abandonada"]

1. e4 {[%clk 0:03:01.9]} 1... Nf6 {[%clk 0:02:59.6]} 2. e5 {[%clk 0:03:00.7]}
2... Nd5 {[%clk 0:02:59.8]} 3. d4 {[%clk 0:03:01.1]} 3... d6 {[%clk 0:03:00.2]}
4. c4 {[%clk 0:03:01.6]} 4... Nb6 {[%clk 0:03:00.7]} 5. exd6 {[%clk 0:02:53.4]}
5... exd6 {[%clk 0:03:02.6]} 6. Nf3 {[%clk 0:02:53.6]} 6... Bg4 {[%clk
0:02:58.3]} 7. Be3 {[%clk 0:02:52.4]} 7... Nc6 {[%clk 0:02:58.3]} 8. Nbd2 {[%clk
0:02:34.3]} 8... Be7 {[%clk 0:02:57.3]} 9. h3 {[%clk 0:02:31]} 9... Bf5 {[%clk
0:02:54.3]} 10. a3 {[%clk 0:02:25.1]} 10... O-O {[%clk 0:02:53.6]} 11. b4 {[%clk
0:02:24.8]} 11... Bf6 {[%clk 0:02:53.6]} 12. Be2 {[%clk 0:02:19.5]} 12... a5
{[%clk 0:02:52.1]} 13. b5 {[%clk 0:02:18.8]} 13... Ne7 {[%clk 0:02:49.7]} 14. a4
{[%clk 0:02:13.9]} 14... c6 {[%clk 0:02:46.8]} 15. O-O {[%clk 0:02:06.8]} 15...
cxb5 {[%clk 0:02:46.6]} 16. axb5 {[%clk 0:02:02.6]} 16... Qc7 {[%clk 0:02:41.1]}
17. g4 {[%clk 0:01:46.6]} 17... Bxg4 {[%clk 0:02:22.7]} 18. hxg4 {[%clk
0:01:46.4]} 18... Ng6 {[%clk 0:02:17.3]} 19. g5 {[%clk 0:01:41.4]} 19... Be7
{[%clk 0:02:15.7]} 20. Qc2 {[%clk 0:01:36.4]} 20... Qd7 {[%clk 0:02:10.3]} 21.
Nh2 {[%clk 0:01:34.2]} 21... Qh3 {[%clk 0:02:04.3]} 22. Qe4 {[%clk 0:01:27.8]}
22... d5 {[%clk 0:01:48.8]} 23. Qg4 {[%clk 0:01:22.4]} 23... Qxg4+ {[%clk
0:01:46.7]} 24. Nxg4 {[%clk 0:01:22.4]} 24... dxc4 {[%clk 0:01:47.9]} 25. Nxc4
{[%clk 0:01:21.1]} 25... Nxc4 {[%clk 0:01:48.1]} 26. Bxc4 {[%clk 0:01:21.2]}
26... b6 {[%clk 0:01:48.9]} 27. Bd5 {[%clk 0:01:18.2]} 27... Rac8 {[%clk
0:01:47.2]} 28. Bc6 {[%clk 0:01:18.7]} 28... Bd6 {[%clk 0:01:42.7]} 29. f4
{[%clk 0:01:07.7]} 29... Ne7 {[%clk 0:01:36.7]} 30. d5 {[%clk 0:01:06]} 30...
Nf5 {[%clk 0:01:07.2]} 31. Bxb6 {[%clk 0:01:06]} 31... Bc7 {[%clk 0:01:01.3]}
32. Bxa5 {[%clk 0:01:05.7]} 32... Bxa5 {[%clk 0:01:01.5]} 33. Rxa5 {[%clk
0:01:06]} 33... Rfd8 {[%clk 0:01:02.7]} 34. b6 {[%clk 0:01:05.9]} 34... Nd4
{[%clk 0:01:00.5]} 35. b7 {[%clk 0:01:05.4]} 35... Rb8 {[%clk 0:01:00.5]} 36.
Ra8 {[%clk 0:01:04.7]} 36... Nxc6 {[%clk 0:01:00]} 37. dxc6 {[%clk 0:01:04.8]}
37... Rxa8 {[%clk 0:01:00.3]} 38. bxa8=Q {[%clk 0:01:04]} 38... Rxa8 {[%clk
0:01:02.2]} 39. c7 {[%clk 0:01:04.9]} 39... Rc8 {[%clk 0:01:01.6]} 40. Rd1
{[%clk 0:01:05.1]} 1

[Event "Torneo Nuevo Centro. Jornada 10"]
[Site "Chess.com"]
[Date "2020.08.21"]
[Round "3"]
[White "Gimenez Saiz, Jose Raul"]
[Black "Fente Fernandez, Jose Ignacio"]
[Result "0-1"]
[WhiteElo "1885"]
[BlackElo "1542"]
[TimeControl "180+2"]
[EndTime "10:58:39 PDT"]
[Termination "Victoria de SrFente por tiempo"]

1. d4 {[%clk 0:03:00]} 1... Nf6 {[%clk 0:02:54]} 2. e3 {[%clk 0:03:01]} 2... g6
{[%clk 0:02:51.8]} 3. Bd3 {[%clk 0:03:02]} 3... Bg7 {[%clk 0:02:46.4]} 4. f4
{[%clk 0:03:03.5]} 4... O-O {[%clk 0:02:46.4]} 5. Nf3 {[%clk 0:03:04.5]} 5... d6
{[%clk 0:02:46.7]} 6. O-O {[%clk 0:03:06]} 6... Nbd7 {[%clk 0:02:46.5]} 7. e4
{[%clk 0:03:03.3]} 7... Re8 {[%clk 0:02:36.9]} 8. e5 {[%clk 0:03:03.4]} 8...
dxe5 {[%clk 0:02:21.8]} 9. fxe5 {[%clk 0:03:03.5]} 9... Nd5 {[%clk 0:02:22.5]}
10. c4 {[%clk 0:02:42.3]} 10... Nb4 {[%clk 0:02:19.5]} 11. Be4 {[%clk
0:02:41.4]} 11... Nb6 {[%clk 0:02:12.9]} 12. Qb3 {[%clk 0:02:24.9]} 12... Nc6
{[%clk 0:02:10.7]} 13. Be3 {[%clk 0:02:11.3]} 13... f5 {[%clk 0:01:59.6]} 14.
Bxc6 {[%clk 0:01:59.5]} 14... bxc6 {[%clk 0:01:55.7]} 15. Nc3 {[%clk 0:01:44.3]}
15... Ba6 {[%clk 0:01:54.2]} 16. Rfd1 {[%clk 0:01:30.9]} 16... Nxc4 {[%clk
0:01:46]} 17. Nd2 {[%clk 0:01:08.1]} 17... Rb8 {[%clk 0:01:38.2]} 18. Qa4 {[%clk
0:00:59.3]} 18... Nxe3 {[%clk 0:01:20]} 19. Qxa6 {[%clk 0:00:57.9]} 19... Nxd1
{[%clk 0:01:19.5]} 20. Rxd1 {[%clk 0:00:55.8]} 20... Qxd4+ {[%clk 0:01:18.5]}
21. Kh1 {[%clk 0:00:48.5]} 21... Rxb2 {[%clk 0:01:18.1]} 22. Nde4 {[%clk
0:00:31.9]} 22... Qxe5 {[%clk 0:01:05.3]} 23. Qc4+ {[%clk 0:00:27.2]} 23... e6
{[%clk 0:01:04]} 24. Ng5 {[%clk 0:00:22.4]} 24... Qxc3 {[%clk 0:00:57.9]} 25.
Qxe6+ {[%clk 0:00:12.6]} 25... Rxe6 {[%clk 0:00:58]} 26. Rd8+ {[%clk 0:00:13.9]}
26... Bf8 {[%clk 0:00:55.9]} 27. Nxe6 {[%clk 0:00:11.8]} 27... Qc1+ {[%clk
0:00:56.2]} 0

[Event "Torneo Nuevo Centro. Jornada 10"]
[Site "Chess.com"]
[Date "2020.08.21"]
[Round "3"]
[White "Mancebo Ibanez, Fernando"]
[Black "Donate Moreno, Silvia"]
[Result "0-1"]
[WhiteElo "2096"]
[BlackElo "1816"]
[TimeControl "180+2"]
[EndTime "10:58:42 PDT"]
[Termination "Victoria de monetesSAL por tiempo"]

1. d4 {[%clk 0:03:01.9]} 1... Nf6 {[%clk 0:03:00.2]} 2. c4 {[%clk 0:03:01.6]}
2... g6 {[%clk 0:03:00.8]} 3. Nc3 {[%clk 0:03:02.1]} 3... Bg7 {[%clk 0:03:02]}
4. e4 {[%clk 0:03:02.9]} 4... d6 {[%clk 0:03:03.1]} 5. Nge2 {[%clk 0:03:04.2]}
5... O-O {[%clk 0:03:01.4]} 6. Ng3 {[%clk 0:03:04.7]} 6... e5 {[%clk 0:03:00]}
7. d5 {[%clk 0:03:05.6]} 7... h5 {[%clk 0:02:56.7]} 8. Be2 {[%clk 0:03:03.9]}
8... h4 {[%clk 0:02:53.4]} 9. Nf1 {[%clk 0:03:04.9]} 9... Nh7 {[%clk 0:02:42.9]}
10. Ne3 {[%clk 0:02:46.2]} 10... f5 {[%clk 0:02:43]} 11. exf5 {[%clk 0:02:28.7]}
11... gxf5 {[%clk 0:02:44.9]} 12. f4 {[%clk 0:02:03.2]} 12... exf4 {[%clk
0:02:40.6]} 13. Nc2 {[%clk 0:02:00.1]} 13... h3 {[%clk 0:02:35.7]} 14. Bxf4
{[%clk 0:01:48.9]} 14... hxg2 {[%clk 0:02:34.6]} 15. Rg1 {[%clk 0:01:49.8]}
15... Qh4+ {[%clk 0:02:30]} 16. Bg3 {[%clk 0:01:50.2]} 16... Qg5 {[%clk
0:02:22.5]} 17. Nd4 {[%clk 0:01:03.1]} 17... f4 {[%clk 0:02:18.9]} 18. Nf3
{[%clk 0:00:55.1]} 18... fxg3 {[%clk 0:02:11]} 19. Rxg2 {[%clk 0:00:40.3]} 19...
Qe7 {[%clk 0:01:35]} 20. Rxg3 {[%clk 0:00:38.6]} 20... Kh8 {[%clk 0:01:35.8]}
21. Qd2 {[%clk 0:00:35.2]} 21... Na6 {[%clk 0:01:26.6]} 22. O-O-O {[%clk
0:00:28.1]} 22... Nc5 {[%clk 0:01:27.1]} 23. Rdg1 {[%clk 0:00:26]} 23... Rg8
{[%clk 0:01:23.3]} 24. Rxg7 {[%clk 0:00:10.2]} 24... Rxg7 {[%clk 0:01:22]} 25.
Qd4 {[%clk 0:00:11.8]} 25... Nf6 {[%clk 0:01:08.6]} 26. Ng5 {[%clk 0:00:12.5]}
26... Bf5 {[%clk 0:00:57.5]} 27. Qh4+ {[%clk 0:00:11.2]} 27... Kg8 {[%clk
0:00:58]} 28. Bf3 {[%clk 0:00:03.3]} 28... Qe3+ {[%clk 0:00:57.2]} 0

[Event "Torneo Nuevo Centro. Jornada 10"]
[Site "Chess.com"]
[Date "2020.08.21"]
[Round "3"]
[White "Roca Cruz, Rafael"]
[Black "Yatseta Fernandez, Marc Kazymyr"]
[Result "0-1"]
[WhiteElo "1834"]
[BlackElo "1458"]
[TimeControl "180+2"]
[EndTime "10:58:45 PDT"]
[Termination "Victoria de K_73 por abandono"]

1. d4 {[%clk 0:03:00.2]} 1... Nf6 {[%clk 0:02:59.9]} 2. c4 {[%clk 0:03:00.8]}
2... e5 {[%clk 0:02:59.1]} 3. dxe5 {[%clk 0:02:57.9]} 3... Ne4 {[%clk
0:02:58.5]} 4. a3 {[%clk 0:02:57.6]} 4... b6 {[%clk 0:02:38.8]} 5. Qd5 {[%clk
0:02:32.2]} 5... Bb7 {[%clk 0:02:32.1]} 6. Qd3 {[%clk 0:02:16.5]} 6... Bc5
{[%clk 0:02:15.7]} 7. e3 {[%clk 0:02:16.2]} 7... f6 {[%clk 0:02:10.5]} 8. Nf3
{[%clk 0:02:05.2]} 8... O-O {[%clk 0:02:01.3]} 9. b4 {[%clk 0:02:01.9]} 9... Be7
{[%clk 0:01:58]} 10. Bb2 {[%clk 0:02:01.9]} 10... fxe5 {[%clk 0:01:50.7]} 11.
Be2 {[%clk 0:01:52.9]} 11... d6 {[%clk 0:01:43]} 12. O-O {[%clk 0:01:53.4]}
12... Nf6 {[%clk 0:01:31]} 13. Nc3 {[%clk 0:01:52]} 13... e4 {[%clk 0:01:30.7]}
14. Nxe4 {[%clk 0:01:44.7]} 14... Bxe4 {[%clk 0:01:26]} 15. Qd2 {[%clk
0:01:38.5]} 15... Bb7 {[%clk 0:01:23.9]} 16. Nd4 {[%clk 0:01:36.2]} 16... Qd7
{[%clk 0:01:19.6]} 17. f3 {[%clk 0:01:18.3]} 17... Nc6 {[%clk 0:01:20.1]} 18.
Nc2 {[%clk 0:01:11.6]} 18... Rae8 {[%clk 0:01:11.2]} 19. e4 {[%clk 0:01:10.9]}
19... Kh8 {[%clk 0:01:07.7]} 20. Ne3 {[%clk 0:01:10.2]} 20... Ne5 {[%clk
0:01:06.7]} 21. Nf5 {[%clk 0:01:08.4]} 21... g6 {[%clk 0:00:56.9]} 22. Nxe7
{[%clk 0:00:45.6]} 22... Qxe7 {[%clk 0:00:57]} 23. g4 {[%clk 0:00:46.5]} 23...
c5 {[%clk 0:00:56]} 24. g5 {[%clk 0:00:43.5]} 24... Nh5 {[%clk 0:00:52.8]} 25.
f4 {[%clk 0:00:43.2]} 25... Nxf4 {[%clk 0:00:40.5]} 26. Rxf4 {[%clk 0:00:42.9]}
26... Qxg5+ {[%clk 0:00:36.8]} 27. Kh1 {[%clk 0:00:33.1]} 27... Qxf4 {[%clk
0:00:36.3]} 28. Qxd6 {[%clk 0:00:33.7]} 28... Qxe4+ {[%clk 0:00:30.9]} 0

[Event "Torneo Nuevo Centro. Jornada 10"]
[Site "Chess.com"]
[Date "2020.08.21"]
[Round "3"]
[White "Mellado Sais, Carles"]
[Black "Ursariu, Nikolas Victor"]
[Result "1-0"]
[WhiteElo "1374"]
[BlackElo "1085"]
[TimeControl "180+2"]
[EndTime "10:58:45 PDT"]
[Termination "Victoria de Magnus_carles por abandono"]

1. d4 {[%clk 0:03:01.9]} 1... d5 {[%clk 0:02:59.8]} 2. Nf3 {[%clk 0:03:00.1]}
2... Nc6 {[%clk 0:03:00.2]} 3. c4 {[%clk 0:02:58.3]} 3... Nf6 {[%clk 0:02:55.5]}
4. Nc3 {[%clk 0:02:58.5]} 4... Bf5 {[%clk 0:02:46.1]} 5. e3 {[%clk 0:02:57.1]}
5... e6 {[%clk 0:02:43.7]} 6. Bd3 {[%clk 0:02:56.2]} 6... Bg6 {[%clk 0:02:40.3]}
7. Nh4 {[%clk 0:02:52.2]} 7... Bh5 {[%clk 0:02:38.3]} 8. Nf3 {[%clk 0:02:52.1]}
8... Bd6 {[%clk 0:02:35.4]} 9. O-O {[%clk 0:02:51.4]} 9... O-O {[%clk
0:02:32.8]} 10. b3 {[%clk 0:02:37.9]} 10... Re8 {[%clk 0:02:20.9]} 11. Bb2
{[%clk 0:02:36.1]} 11... e5 {[%clk 0:02:11.5]} 12. dxe5 {[%clk 0:02:31.4]} 12...
Bxe5 {[%clk 0:02:10.3]} 13. Rb1 {[%clk 0:02:20.6]} 13... Bd6 {[%clk 0:02:04.8]}
14. Re1 {[%clk 0:02:14]} 14... Ne5 {[%clk 0:02:02.8]} 15. e4 {[%clk 0:02:01.6]}
15... dxe4 {[%clk 0:01:59.7]} 16. Bxe4 {[%clk 0:01:57.5]} 16... Nxf3+ {[%clk
0:01:58.2]} 17. Bxf3 {[%clk 0:01:55.5]} 17... Bxf3 {[%clk 0:01:57.4]} 18. Rxe8+
{[%clk 0:01:51.9]} 18... Qxe8 {[%clk 0:01:53.6]} 19. Qxf3 {[%clk 0:01:50.5]}
19... Qd7 {[%clk 0:01:49.2]} 20. Qxb7 {[%clk 0:01:42]} 20... Re8 {[%clk
0:01:48.6]} 21. Qf3 {[%clk 0:01:31.9]} 21... Qe6 {[%clk 0:01:36.7]} 22. g3
{[%clk 0:01:23.9]} 22... Qe2 {[%clk 0:01:26.4]} 23. Nxe2 {[%clk 0:01:20.2]}
23... Bb4 {[%clk 0:01:15.5]} 24. Bxf6 {[%clk 0:01:16.2]} 24... gxf6 {[%clk
0:01:13.4]} 25. Qg4+ {[%clk 0:01:13.5]} 25... Kf8 {[%clk 0:01:10.4]} 26. Nf4
{[%clk 0:01:02.8]} 26... Re1+ {[%clk 0:00:52]} 27. Rxe1 {[%clk 0:01:00.7]} 27...
Bxe1 {[%clk 0:00:53.9]} 28. Nd5 {[%clk 0:01:00.5]} 28... Ba5 {[%clk 0:00:41.2]}
29. Nxf6 {[%clk 0:00:59.1]} 29... Ke7 {[%clk 0:00:39.6]} 30. Nd5+ {[%clk
0:00:56.4]} 30... Kd6 {[%clk 0:00:36.1]} 31. Qg7 {[%clk 0:00:52.6]} 31... c6
{[%clk 0:00:33.7]} 32. Qxf7 {[%clk 0:00:50.6]} 32... cxd5 {[%clk 0:00:30.1]} 33.
Qxd5+ {[%clk 0:00:50.6]} 33... Ke7 {[%clk 0:00:22.4]} 34. Qxa5 {[%clk
0:00:50.9]} 1

[Event "Torneo Nuevo Centro. Jornada 10"]
[Site "Chess.com"]
[Date "2020.08.21"]
[Round "3"]
[White "Carbonell Bofill, Carlos Eloy"]
[Black "Morello Ostos, Domingo"]
[Result "0-1"]
[WhiteElo "1918"]
[BlackElo "1715"]
[TimeControl "180+2"]
[EndTime "10:58:54 PDT"]
[Termination "Victoria de dmorello por tiempo"]

1. d4 {[%clk 0:03:01.7]} 1... Nf6 {[%clk 0:03:00.3]} 2. Nf3 {[%clk 0:03:01.8]}
2... g6 {[%clk 0:02:59.4]} 3. g3 {[%clk 0:03:02.2]} 3... Bg7 {[%clk 0:03:00.8]}
4. Bg2 {[%clk 0:03:03.7]} 4... d6 {[%clk 0:03:01.4]} 5. O-O {[%clk 0:03:04.3]}
5... c6 {[%clk 0:03:02.8]} 6. c4 {[%clk 0:03:04.6]} 6... O-O {[%clk 0:02:58.9]}
7. Nc3 {[%clk 0:03:04.8]} 7... Qa5 {[%clk 0:03:00.1]} 8. e4 {[%clk 0:03:04.6]}
8... Qa6 {[%clk 0:02:59.2]} 9. b3 {[%clk 0:03:03.5]} 9... b5 {[%clk 0:02:56.9]}
10. cxb5 {[%clk 0:03:02]} 10... cxb5 {[%clk 0:02:58.8]} 11. e5 {[%clk 0:03:03]}
11... Nfd7 {[%clk 0:02:54.3]} 12. exd6 {[%clk 0:03:01.1]} 12... exd6 {[%clk
0:02:47.9]} 13. Bb2 {[%clk 0:02:31.2]} 13... Bb7 {[%clk 0:02:42.9]} 14. a4
{[%clk 0:02:29.7]} 14... b4 {[%clk 0:02:33.5]} 15. Nb5 {[%clk 0:02:28.4]} 15...
Qb6 {[%clk 0:02:27.6]} 16. Qe2 {[%clk 0:02:13.4]} 16... a6 {[%clk 0:02:18.1]}
17. d5 {[%clk 0:01:30.1]} 17... axb5 {[%clk 0:02:16.1]} 18. Bxg7 {[%clk
0:01:29.1]} 18... Kxg7 {[%clk 0:02:15]} 19. axb5 {[%clk 0:01:19.2]} 19... Rxa1
{[%clk 0:02:06.3]} 20. Rxa1 {[%clk 0:01:17]} 20... Bxd5 {[%clk 0:02:01.8]} 21.
Rd1 {[%clk 0:01:10.6]} 21... Bxb3 {[%clk 0:01:57.8]} 22. Qb2+ {[%clk 0:01:10.3]}
22... Ne5 {[%clk 0:01:49.7]} 23. Qxb3 {[%clk 0:00:46]} 23... Qxb5 {[%clk
0:01:41.3]} 24. Rxd6 {[%clk 0:00:43.7]} 24... Nbd7 {[%clk 0:01:32.4]} 25. Nxe5
{[%clk 0:00:30.3]} 25... Nxe5 {[%clk 0:01:31.1]} 26. Rd5 {[%clk 0:00:30]} 26...
Qe2 {[%clk 0:01:25.1]} 27. Qxb4 {[%clk 0:00:13.1]} 27... Rc8 {[%clk 0:01:05.7]}
28. h4 {[%clk 0:00:01.9]} 28... Rc1+ {[%clk 0:00:54.4]} 29. Kh2 {[%clk
0:00:02.4]} 29... Ng4+ {[%clk 0:00:53.7]} 0

[Event "Torneo Nuevo Centro. Jornada 10"]
[Site "Chess.com"]
[Date "2020.08.21"]
[Round "3"]
[White "Fenollar Jorda, Manolo"]
[Black "Aymerich Rosell, Pablo"]
[Result "1-0"]
[WhiteElo "2475"]
[BlackElo "1972"]
[TimeControl "180+2"]
[EndTime "10:58:58 PDT"]
[Termination "Victoria de Cucudrulu por tiempo"]

1. d4 {[%clk 0:03:01.9]} 1... d6 {[%clk 0:02:56.3]} 2. Nf3 {[%clk 0:03:02.5]}
2... g6 {[%clk 0:02:56]} 3. c4 {[%clk 0:03:01.9]} 3... Bg7 {[%clk 0:02:56.5]} 4.
Nc3 {[%clk 0:03:01.8]} 4... Nf6 {[%clk 0:02:56.3]} 5. e4 {[%clk 0:03:02.8]} 5...
O-O {[%clk 0:02:56.1]} 6. h3 {[%clk 0:03:03.1]} 6... Nbd7 {[%clk 0:02:52.9]} 7.
Be2 {[%clk 0:03:03.7]} 7... e5 {[%clk 0:02:53.6]} 8. Be3 {[%clk 0:02:59.3]} 8...
exd4 {[%clk 0:02:51.1]} 9. Bxd4 {[%clk 0:02:57]} 9... Re8 {[%clk 0:02:50.7]} 10.
Nd2 {[%clk 0:02:53]} 10... Nc5 {[%clk 0:02:41.5]} 11. Bxc5 {[%clk 0:02:49.9]}
11... dxc5 {[%clk 0:02:41.4]} 12. O-O {[%clk 0:02:51.3]} 12... c6 {[%clk
0:02:31.4]} 13. Qc2 {[%clk 0:02:47.3]} 13... Qc7 {[%clk 0:02:17.2]} 14. Rad1
{[%clk 0:02:46.8]} 14... b6 {[%clk 0:02:04.2]} 15. f4 {[%clk 0:02:47.2]} 15...
Ba6 {[%clk 0:01:57.3]} 16. e5 {[%clk 0:02:47.3]} 16... Nd7 {[%clk 0:01:52.1]}
17. Nde4 {[%clk 0:02:48]} 17... Nf8 {[%clk 0:01:45.9]} 18. Bg4 {[%clk
0:02:30.2]} 18... h5 {[%clk 0:01:43.9]} 19. Bf3 {[%clk 0:02:30.2]} 19... Ne6
{[%clk 0:01:43.6]} 20. Nd6 {[%clk 0:02:22.1]} 20... Red8 {[%clk 0:01:36.5]} 21.
Ne2 {[%clk 0:02:18.8]} 21... Bh6 {[%clk 0:01:05.6]} 22. Qe4 {[%clk 0:02:18.5]}
22... Bb7 {[%clk 0:00:48.6]} 23. g4 {[%clk 0:02:12.9]} 23... hxg4 {[%clk
0:00:48]} 24. hxg4 {[%clk 0:02:14.8]} 24... Bf8 {[%clk 0:00:46.1]} 25. Nxb7
{[%clk 0:02:10.3]} 25... Qxb7 {[%clk 0:00:46.7]} 26. Qxc6 {[%clk 0:02:11.9]}
26... Qa6 {[%clk 0:00:41.4]} 27. Qb5 {[%clk 0:02:09.4]} 27... Qxb5 {[%clk
0:00:30]} 28. cxb5 {[%clk 0:02:11.3]} 28... Rab8 {[%clk 0:00:25.6]} 29. Kf2
{[%clk 0:02:11.1]} 29... Nd4 {[%clk 0:00:23.9]} 30. Nxd4 {[%clk 0:02:11.5]}
30... cxd4 {[%clk 0:00:25.1]} 31. Ke2 {[%clk 0:02:08.3]} 31... Bc5 {[%clk
0:00:22.4]} 32. Kd3 {[%clk 0:02:08.1]} 32... Kg7 {[%clk 0:00:23.1]} 33. f5
{[%clk 0:02:02.4]} 33... Rh8 {[%clk 0:00:23.2]} 34. f6+ {[%clk 0:02:00.3]} 34...
Kf8 {[%clk 0:00:18]} 35. Rh1 {[%clk 0:01:59.2]} 35... Rxh1 {[%clk 0:00:17.6]}
36. Rxh1 {[%clk 0:02:01.1]} 36... Ke8 {[%clk 0:00:17.6]} 37. Rh8+ {[%clk
0:01:58.7]} 37... Bf8 {[%clk 0:00:18.5]} 38. Kxd4 {[%clk 0:01:58.1]} 38... Rd8+
{[%clk 0:00:18.1]} 39. Bd5 {[%clk 0:01:58.9]} 39... Kd7 {[%clk 0:00:15.8]} 40.
Ke4 {[%clk 0:01:59.1]} 40... Rc8 {[%clk 0:00:14.1]} 41. Bxf7 {[%clk 0:01:57.9]}
41... g5 {[%clk 0:00:08.1]} 42. e6+ {[%clk 0:01:55.9]} 42... Kd6 {[%clk
0:00:08.4]} 43. e7 {[%clk 0:01:57.1]} 43... Bxe7 {[%clk 0:00:04.6]} 44. Rxc8
{[%clk 0:01:59]} 44... Bxf6 {[%clk 0:00:05.4]} 45. Rc6+ {[%clk 0:01:58.6]} 45...
Ke7 {[%clk 0:00:06.5]} 46. Bc4 {[%clk 0:01:51.8]} 1

[Event "Torneo Nuevo Centro. Jornada 10"]
[Site "Chess.com"]
[Date "2020.08.21"]
[Round "3"]
[White "Donate Peris, Jose Manuel"]
[Black "Castellano López, Javier"]
[Result "0-1"]
[WhiteElo "1535"]
[BlackElo "1903"]
[TimeControl "180+2"]
[EndTime "10:59:04 PDT"]
[Termination "Victoria de its_xavi_official por abandono"]

1. d4 {[%clk 0:03:01.9]} 1... Nf6 {[%clk 0:03:00.4]} 2. c4 {[%clk 0:03:02.3]}
2... e6 {[%clk 0:03:00.8]} 3. Nc3 {[%clk 0:03:02.6]} 3... d5 {[%clk 0:03:02.1]}
4. cxd5 {[%clk 0:03:00.6]} 4... exd5 {[%clk 0:03:04]} 5. Bg5 {[%clk 0:02:58.9]}
5... Be7 {[%clk 0:03:04.8]} 6. e3 {[%clk 0:02:59.5]} 6... c6 {[%clk 0:03:05]} 7.
Bd3 {[%clk 0:02:59.4]} 7... Nbd7 {[%clk 0:03:02.6]} 8. Nge2 {[%clk 0:02:55.9]}
8... Nf8 {[%clk 0:03:03.4]} 9. O-O {[%clk 0:02:53.3]} 9... Ne6 {[%clk
0:03:04.5]} 10. Bxf6 {[%clk 0:02:50.3]} 10... Bxf6 {[%clk 0:03:05.3]} 11. Rc1
{[%clk 0:02:48.3]} 11... O-O {[%clk 0:03:05.5]} 12. Bb1 {[%clk 0:02:47.4]} 12...
a6 {[%clk 0:03:04.2]} 13. Ng3 {[%clk 0:02:42.9]} 13... g6 {[%clk 0:03:04.2]} 14.
f3 {[%clk 0:02:39.1]} 14... Bd7 {[%clk 0:03:01.7]} 15. f4 {[%clk 0:02:36.7]}
15... Ng7 {[%clk 0:03:00.1]} 16. Na4 {[%clk 0:02:25.8]} 16... Re8 {[%clk
0:02:59.8]} 17. Re1 {[%clk 0:02:22.2]} 17... Qa5 {[%clk 0:02:28.8]} 18. Nc5
{[%clk 0:02:17.7]} 18... Bc8 {[%clk 0:02:16.2]} 19. Kh1 {[%clk 0:01:59.6]} 19...
Be7 {[%clk 0:02:16.2]} 20. Nb3 {[%clk 0:01:56.2]} 20... Qb6 {[%clk 0:02:11.9]}
21. Qd2 {[%clk 0:01:43.5]} 21... Bb4 {[%clk 0:02:04.8]} 22. Qf2 {[%clk
0:01:36.7]} 22... Bxe1 {[%clk 0:02:05.3]} 23. Rxe1 {[%clk 0:01:37.3]} 23... Be6
{[%clk 0:02:01.8]} 24. f5 {[%clk 0:01:34.1]} 24... Bd7 {[%clk 0:01:57.1]} 25.
fxg6 {[%clk 0:01:34]} 25... fxg6 {[%clk 0:01:55.2]} 26. h4 {[%clk 0:01:26.7]}
26... Rf8 {[%clk 0:01:55.7]} 27. Qd2 {[%clk 0:01:24]} 27... Rae8 {[%clk
0:01:53.5]} 28. Kh2 {[%clk 0:01:20.2]} 28... Qc7 {[%clk 0:01:47.1]} 29. e4
{[%clk 0:00:59.5]} 29... dxe4 {[%clk 0:01:46.7]} 30. Rxe4 {[%clk 0:00:56.1]}
30... Rxe4 {[%clk 0:01:46.5]} 31. Bxe4 {[%clk 0:00:55.7]} 31... Nh5 {[%clk
0:01:47.1]} 32. Qd3 {[%clk 0:00:46.6]} 32... Qxg3+ {[%clk 0:01:46.4]} 33. Qxg3
{[%clk 0:00:45.9]} 33... Nxg3 {[%clk 0:01:48.3]} 34. Kxg3 {[%clk 0:00:45.9]}
34... Be6 {[%clk 0:01:49.4]} 35. Nc5 {[%clk 0:00:44.1]} 35... Bc8 {[%clk
0:01:50.4]} 36. d5 {[%clk 0:00:35.5]} 36... cxd5 {[%clk 0:01:48.8]} 37. Bxd5+
{[%clk 0:00:35.5]} 37... Kg7 {[%clk 0:01:49.9]} 38. Bxb7 {[%clk 0:00:30.8]}
38... Bxb7 {[%clk 0:01:50.5]} 39. Ne6+ {[%clk 0:00:31.5]} 39... Kf7 {[%clk
0:01:49.7]} 40. Nxf8 {[%clk 0:00:31.9]} 40... Kxf8 {[%clk 0:01:51.6]} 41. Kh3
{[%clk 0:00:28.5]} 41... Ke7 {[%clk 0:01:52]} 42. g4 {[%clk 0:00:28.4]} 42...
Bc8 {[%clk 0:01:53.1]} 43. Kg3 {[%clk 0:00:28.3]} 43... Kd6 {[%clk 0:01:54.6]}
44. Kf4 {[%clk 0:00:26.1]} 44... h6 {[%clk 0:01:53.8]} 45. g5 {[%clk 0:00:24.9]}
45... hxg5+ {[%clk 0:01:53.2]} 46. hxg5 {[%clk 0:00:23.8]} 46... Kd5 {[%clk
0:01:54.4]} 47. Ke3 {[%clk 0:00:24]} 47... Ke5 {[%clk 0:01:55]} 48. a4 {[%clk
0:00:21.8]} 48... Kf5 {[%clk 0:01:55.6]} 49. b4 {[%clk 0:00:21.7]} 49... Kxg5
{[%clk 0:01:56.1]} 50. b5 {[%clk 0:00:22.4]} 50... axb5 {[%clk 0:01:57.3]} 51.
axb5 {[%clk 0:00:22.2]} 51... Kf5 {[%clk 0:01:59.1]} 52. Kd4 {[%clk 0:00:21.8]}
52... g5 {[%clk 0:01:59.9]} 53. Kc5 {[%clk 0:00:21.4]} 53... g4 {[%clk
0:02:00.9]} 0